Cogmind - Beta 13 X2 @@@ ROGUE MODE // 2024.01.07 @ 22:53:41 Player: Minty Result: Destroyed by G-73 Enforcer with Heavy Laser Performance ------------- Evolutions (5) 2500 Regions Visited (14) 2800 Robots Destroyed (114) 570 Value Destroyed (5298) 5298 Prototype IDs (16) 320 Alien Tech Used (0) 0 Bonus (5615) 5615 TOTAL SCORE: 17103 Bonus ------- Follower Combat Kills 101 Met Warlord at Base 500 MAIN.C Attacked Warlord 500 Warlord Defense Kills 5446 Friendly Fire -932 Cogmind --------- Core Integrity 0/1000 Matter 280/300 Energy 99/100 System Corruption 0% Temperature Cool (9) Movement Core (200) Ox3 Location -4/Proximity Caves Parts ------- > --- POWER (1) -------- (None) > --- PROPULSION (3) --- (None) > --- UTILITY (9) ------ Medium Storage Unit Improved Signal Interpreter Advanced Terrain Scan Processor Core Analyzer > --- WEAPON (4) ------- (None) > --- INVENTORY (10) --- Improved Weapon Cycler Medium Insulated Plating BFG-9k Vortex Edition Meganuke Peak State ------------ > --- POWER ------------ Micro Nuclear Core > --- PROPULSION ------- Medium Treads Armored Medium Treads Armored Medium Treads > --- UTILITY ---------- Experimental Heat Sink Medium Storage Unit Improved Signal Interpreter Advanced Terrain Scan Processor Core Analyzer Improved Weapon Cycler Layered Light Armor Plating Makeshift Ablative Armor System Shield > --- WEAPON ----------- Vortex Catalyst Activator RU-N14's Throwing Claymores v3 > --- INVENTORY -------- BFG-9k Vortex Edition Meganuke [Rating: 95] Favorites ----------- Power Light Ion Engine Engine Light Ion Engine Power Core Micro Nuclear Core Propulsion Aluminum Leg Treads Medium Treads Leg Aluminum Leg Hover Unit Backup Propulsion III Flight Unit Impulse Thruster Array Utility Improved Signal Interpreter Device Improved Weapon Cycler Storage Medium Storage Unit Processor Improved Signal Interpreter Hackware System Shield Protection Improved Utility Shielding Weapon Spread Laser Energy Gun Spread Laser Energy Cannon Disruptor Cannon Ballistic Gun Shotgun Ballistic Cannon Mini Assault Cannon Launcher Vortex Catalyst Activator Special Weapon RU-N14's Throwing Claymores v3 Impact Weapon Power Maul Slashing Weapon Power Sword Build | -11 -10 -10 -9 -9 -9 -8 -8 -7 -6 -5 -5 -5 -5 -4 ------- Run | Yrd Mat Min Mat Min Exi Min Mat Fac Fac Fac Upp Upp War Pro Slots Evolved 10 | . . . 2 . . . 2 2 2 2 . . . . Power . | . . . . . . . . . . . . . . . Propulsion 1 | . . . . . . . . . . 1 . . . . Utility 7 | . . . 1 . . . 2 2 1 1 . . . . Weapon 2 | . . . 1 . . . . . 1 . . . . . Parts Attached 85 | . 4 . 6 1 . . 23 13 2 7 4 7 13 5 Power 5 | . 1 . . . . . 2 . . 1 . . 1 . Engine 1 | . 1 . . . . . . . . . . . . . Core 4 | . . . . . . . 2 . . 1 . . 1 . Reactor . | . . . . . . . . . . . . . . . Propulsion 17 | . 1 . . 1 . . 9 1 . . 1 1 3 . Treads 3 | . . . . . . . . . . . . 1 2 . Leg 13 | . 1 . . 1 . . 9 1 . . 1 . . . Wheel . | . . . . . . . . . . . . . . . Hover . | . . . . . . . . . . . . . . . Flight 1 | . . . . . . . . . . . . . 1 . Utility 33 | . 2 . 1 . . . 8 9 1 5 . 3 1 3 Device 20 | . 1 . 1 . . . 5 6 1 3 . 2 . 1 Storage 1 | . . . . . . . . 1 . . . . . . Processor 4 | . . . . . . . 2 1 . 1 . . . . Hackware 2 | . 1 . . . . . 1 . . . . . . . Protection 6 | . . . . . . . . 1 . 1 . 1 1 2 Artifact . | . . . . . . . . . . . . . . . Weapon 30 | . . . 5 . . . 4 3 1 1 3 3 8 2 Energy Gun 13 | . . . 4 . . . 3 2 . . 3 1 . . Energy Cannon 3 | . . . . . . . . . . 1 . . 2 . Ballistic Gun 1 | . . . 1 . . . . . . . . . . . Ballistic Cannon 4 | . . . . . . . . 1 1 . . 1 1 . Launcher 5 | . . . . . . . . . . . . . 3 2 Special Weapon 2 | . . . . . . . . . . . . . 2 . Impact Weapon 1 | . . . . . . . 1 . . . . . . . Slashing Weapon 1 | . . . . . . . . . . . . 1 . . Piercing Weapon . | . . . . . . . . . . . . . . . Special Melee Weapon . | . . . . . . . . . . . . . . . Unidentified Prototypes 6 | . . . . . . . 2 . . 1 . . 2 1 Corrupted Parts 2 | . . . . . . . 2 . . . . . . . System Corruption 6 | . . . . . . . 6 . . . . . . . Parts Lost 26 | . . . 1 . . . 4 2 1 . . 10 5 3 Power 2 | . . . . . . . . . . . . 1 1 . Propulsion 8 | . . . . . . . 2 . . . . 3 2 1 Utility 10 | . . . . . . . 1 1 1 . . 3 2 2 Weapon 6 | . . . 1 . . . 1 1 . . . 3 . . Highest Loss Streak 5 | . . . 1 . . . 4 1 1 . . 5 5 2 To Critical Strikes . | . . . . . . . . . . . . . . . Average Slot Usage (%) 84 | . 96 100 99 100 100 100 93 98 93 88 98 58 78 49 Engine 3 | . 14 14 11 11 11 11 3 . . . . . . . Core 3 | . . . . . . . 5 7 6 5 5 3 4 . Treads 1 | . . . . . . . . . . . . . 5 4 Leg 11 | . 28 28 22 22 22 22 16 15 13 11 15 1 . . Device 12 | . 5 . 11 11 11 11 13 22 13 13 17 13 10 4 Storage 7 | . 14 14 11 11 11 11 9 7 6 5 5 5 5 5 Processor 11 | . . . . . . . 9 14 13 14 17 17 17 17 Hackware 7 | . 5 14 11 11 11 11 10 7 6 5 5 5 5 4 Protection 2 | . . . . . . . . . 6 5 5 1 7 8 Energy Gun 10 | . 14 14 21 22 22 22 16 12 6 5 14 1 1 . Ballistic Gun 3 | . 14 14 11 11 11 11 5 . . . . . . . Ballistic Cannon 2 | . . . . . . . . 1 13 11 6 5 3 . Naked Turns . | . . . . . . . . . . . . . . . Heaviest Build 59 | 12 13 12 18 18 18 18 23 31 37 43 42 39 59 25 Greatest Support 82 | 20 20 20 20 20 20 20 40 40 40 40 55 55 82 27 Greatest Overweight (x) 7 | . . . . . . . 5 . . 1 1 7 2 6 Average Overweight (x) . | . . . . . . . . . . . . 3 . . Largest Inventory Capacity 10 | . 8 8 8 8 8 8 8 10 10 10 10 10 10 10 Average Capacity 9 | . 8 8 8 8 8 8 8 9 10 10 10 10 10 10 Most Carried 10 | . 8 8 8 8 8 8 8 10 8 10 10 10 10 10 Average Carried 8 | . 6 8 7 7 8 8 7 8 7 9 9 9 9 9 Final Capacity 10 | 8 8 8 8 8 8 8 8 10 10 10 10 10 10 10 Final Carried 10 | 7 8 8 8 8 8 8 8 9 7 10 10 9 10 10 Class Distribution -------------------- 38% | Mutant 24% | Scavenger-Gunner 16% | Skirmisher 12% | Gunner 4% | Assassin Dominant Class ---------------- Mutant | -10/Materials Mutant | -10/Mines Scavenger-Gunner | -9/Materials Scavenger-Gunner | -9/Mines Scavenger-Gunner | -9/Exiles Scavenger-Gunner | -8/Mines Mutant | -8/Materials Assassin | -7/Factory Skirmisher | -6/Factory Skirmisher | -5/Factory Skirmisher | -5/Upper Caves Mutant | -5/Upper Caves Gunner | -5/Warlord Mutant | -4/Proximity Caves Resources | -11 -10 -10 -9 -9 -9 -8 -8 -7 -6 -5 -5 -5 -5 -4 ----------- Run | Yrd Mat Min Mat Min Exi Min Mat Fac Fac Fac Upp Upp War Pro Matter Collected 1696 | 200 75 . 165 114 . . 248 98 . . 378 273 130 15 Remotely . | . . . . . . . . . . . . . . . Salvage Created 3146 | . 330 43 333 174 . . 626 251 . . 198 376 520 295 Parts 146 | . 21 1 18 18 . . 28 19 . 1 8 5 17 10 Haulers Intercepted 6 | . . . 3 . . . 2 . . . . . . 1 Recyclers Shooed 2 | . . . . 1 . . 1 . . . . . . . Parts Field Recycled . | . . . . . . . . . . . . . . . Retrieved Matter . | . . . . . . . . . . . . . . . Parts Self-Destructed 15 | . . . . . . . . . . . 5 6 . 4 Prevented 6 | . . . . . . . . . . . 3 3 . . Kills | -11 -10 -10 -9 -9 -9 -8 -8 -7 -6 -5 -5 -5 -5 -4 ------- Run | Yrd Mat Min Mat Min Exi Min Mat Fac Fac Fac Upp Upp War Pro Combat Hostiles Destroyed 89 | . 6 1 3 4 . . 8 6 . . 3 9 42 7 Melee 1 | . . . . . . . 1 . . . . . . . Guns 25 | . 6 1 3 4 . . 5 5 . . 1 . . . Cannons 13 | . . . . . . . . 1 . . 2 9 1 . AOE 48 | . . . . . . . . . . . . . 41 7 Classes Destroyed 21 | . 6 . 2 3 . . 1 2 . . . 1 6 . Worker 4 | . 1 . 2 . . . . . . 1 . . . . Builder 4 | . . . . 1 . . 2 1 . . . . . . Tunneler 2 | . . . . 2 . . . . . . . . . . Hauler 6 | . . . 3 . . . 2 . . . . . . 1 Recycler 4 | . 1 . 1 1 . . 1 . . . . . . . Mechanic 1 | . . . . . . . . . . . . . 1 . Operator 1 | . 1 . . . . . . . . . . . . . Watcher 3 | . 1 . 1 . . . . 1 . . . . . . Swarmer 10 | . 1 . . 4 . . . 3 . . . . 2 . Grunt 50 | . 5 1 1 . . . 7 1 . . . 7 21 7 Brawler 4 | . . . . . . . . . . . . 1 3 . Duelist 3 | . . . . . . . 1 . . . . . 2 . Protector 1 | . . . . . . . . . . . . . 1 . Sentry 3 | . . . 2 . . . . . . . 1 . . . Specialist 4 | . . . . . . . . . . . . . 4 . Hunter 6 | . . . . . . . . 1 . . 2 1 2 . Programmer 1 | . . . . . . . . 1 . . . . . . Behemoth 1 | . . . . . . . . . . . . . 1 . Striker 3 | . . . . . . . . . . . . . 3 . Executioner 3 | . . . . . . . . . . . . . 3 . Mutant 1 | . . . . 1 . . . . . . . . . . Best Kill Streak 18 | . 5 1 4 2 . . 4 6 . 1 2 3 18 6 Combat Bots Only 18 | . 3 1 2 2 . . 4 4 . . 2 3 18 5 Max Kills in Single Turn 9 | . 1 1 2 1 . . 2 1 . 1 1 1 9 4 Gunslinging 1 | . . . . . . . 1 . . . . . . . Exploded 9 | . . . . . . . . . . . . . 9 3 Melee 1 | . . . . . . . 1 . . . . . . . Uniques/NPCs Destroyed . | . . . . . . . . . . . . . . . Combat | -11 -10 -10 -9 -9 -9 -8 -8 -7 -6 -5 -5 -5 -5 -4 -------- Run | Yrd Mat Min Mat Min Exi Min Mat Fac Fac Fac Upp Upp War Pro Hostile Shots Fired 417 | . 21 3 25 15 . . 40 45 . . 31 106 109 22 Missed 135 | . 5 . 13 2 . . 11 11 . . 6 40 40 7 Damage Taken 5428 | . 174 40 264 126 . . 442 578 51 . 474 1187 1778 314 Core 1414 | . 18 14 34 31 . . 86 193 26 . 103 271 434 204 Absorbed by Shields . | . . . . . . . . . . . . . . . Redirected to Shielding 109 | . . . . . . . . . 16 . 46 47 . . Regen/Repaired (Parts) 37 | . . . . . . . . . . . . . 37 . Core Remaining (%) 87 | 100 . 87 . . . 83 84 72 96 . . . . . Volleys Fired 170 | . 18 3 25 17 . . 21 16 . 1 12 40 13 4 Largest 4 | . 2 2 3 3 . . 3 2 . 3 4 3 2 1 Hottest 242 | . 70 70 153 153 . . 153 119 . 161 242 182 20 20 Shots Fired 371 | . 36 6 75 50 3 . 51 31 . 3 35 56 21 4 Gun 272 | . 36 6 75 50 3 . 51 24 . 1 12 14 . . Cannon 74 | . . . . . . . . 7 . 2 23 42 . . Launcher 5 | . . . . . . . . . . . . . 2 3 Special 20 | . . . . . . . . . . . . . 19 1 Kinetic 146 | . 18 3 25 17 1 . 11 7 . 2 20 42 . . Thermal 160 | . 18 3 50 33 2 . 29 9 . 1 7 8 . . Explosive 20 | . . . . . . . . . . . . . 19 1 Electromagnetic 40 | . . . . . . . 11 15 . . 8 6 . . Entropic 5 | . . . . . . . . . . . . . 2 3 Robot Hit Streak 16 | . 9 1 9 16 3 . 8 9 . 7 9 7 15 2 Robot Miss Streak 11 | . 2 3 11 10 5 . 9 2 . 1 4 2 1 1 Penetration Max . | . . . . . . . . . . . . . . . Secondary Targets 3 | . 1 . . 1 . . 1 . . . . . . . Max Gunslinging Chain 1 | . 1 . . 1 . . 1 . . . . . . . Shots Hit Robots 278 | . 26 2 53 37 1 . 49 28 . 3 24 37 16 2 Core Hits 262 | . 17 1 22 41 1 . 37 15 . 1 15 15 86 11 Critical Kills . | . . . . . . . . . . . . . . . Critical Parts Destroyed 4 | . . . . 1 . . 2 1 . . . . . . Critical Strikes 15 | . . . . 1 . . 3 1 . 1 1 2 6 . Burn 1 | . . . . . . . 1 . . . . . . . Destroy 1 | . . . . 1 . . . . . . . . . . Blast 4 | . . . . . . . . . . 1 1 2 . . Smash 3 | . . . . . . . 2 1 . . . . . . Sever 6 | . . . . . . . . . . . . . 6 . Melee Attacks 19 | . . . . . . . 5 12 2 . . . . . Impact 19 | . . . . . . . 5 12 2 . . . . . Slashing . | . . . . . . . . . . . . . . . Piercing . | . . . . . . . . . . . . . . . Sneak Attacks 2 | . . . . . . . 1 1 . . . . . . Combat Hostiles . | . . . . . . . . . . . . . . . Follow-up Attacks . | . . . . . . . . . . . . . . . Damage Inflicted 18033 | . 345 33 690 453 13 . 1008 839 . 77 476 969 11037 2093 Guns 2906 | . 345 33 687 440 13 . 709 338 . 20 174 147 . . Cannons 1294 | . . . . . . . . 141 . 57 274 822 . . Explosions 12399 | . . . . . . . . . . . . . 10346 2053 Melee 659 | . . . . . . . 299 360 . . . . . . Ramming 48 | . . . 3 13 . . . . . . 28 . 4 . Kinetic 1982 | . 171 33 253 139 . . 128 141 . 57 238 822 . . Thermal 1641 | . 174 . 434 301 13 . 371 119 . 20 114 95 . . Explosive 10468 | . . . . . . . . . . . . . 9749 719 Electromagnetic 577 | . . . . . . . 210 219 . . 96 52 . . Impact 659 | . . . . . . . 299 360 . . . . . . Slashing 727 | . . . . . . . . . . . . . 687 40 Piercing . | . . . . . . . . . . . . . . . Entropic 1931 | . . . . . . . . . . . . . 597 1334 Highest Corruption 6 | . . . 5 5 5 5 6 3 1 . . 2 . . Average Corruption 4 | . . . 4 5 5 5 4 2 1 . . 1 . . Corruption Purged 6 | . . . . . . . 4 . . . . 2 . . Corruption Blocked . | . . . . . . . . . . . . . . . Effects 58 | . . . 5 28 17 . 3 1 . . . 4 . . Message Errors 10 | . . . 1 4 4 . . . . . . 1 . . Matter Fused 15 | . . . 3 7 3 . 1 . . . . 1 . . Heat Flow Errors 7 | . . . . 5 2 . . . . . . . . . Energy Discharges 6 | . . . . 4 1 . . . . . . 1 . . Data Loss (minor) 8 | . . . . 3 2 . 2 . . . . 1 . . Data Loss (major) 2 | . . . . 1 1 . . . . . . . . . Misfires 6 | . . . 1 1 3 . . 1 . . . . . . Alerts 2 | . . . . 1 1 . . . . . . . . . Weapon Failures 2 | . . . . 2 . . . . . . . . . . Overload Shots . | . . . . . . . . . . . . . . . Overflow Damage 531 | . . . . . . . 100 139 . 24 . 16 148 104 Projectiles 108 | . . . . . . . . 13 . 24 . 16 55 . Explosions 197 | . . . . . . . . . . . . . 93 104 Melee 226 | . . . . . . . 100 126 . . . . . . Knockbacks 14 | . . . 1 . . . 1 5 . . 3 4 . . Impact 4 | . . . 1 . . . 1 2 . . . . . . Kinetic 9 | . . . . . . . . 2 . . 3 4 . . Secondary 1 | . . . . . . . . 1 . . . . . . Self-Inflicted Damage 158 | . . . . . . . . . . . . . 158 . Shots 1 | . . . . . . . . . . . . . 1 . Rammed 2 | . . . . . . . . . . . . . 2 . Targets Rammed 11 | . . . 1 4 . . . . . . 4 . 2 . Kicked 9 | . . . 1 4 . . . . . . 4 . . . Crushed . | . . . . . . . . . . . . . . . Highest Temperature 259 | . 63 42 84 259 201 . 162 12 . 21 174 116 12 . Average Temperature 48 | . 18 20 31 61 103 . 61 6 . 14 70 50 12 . Received Heat Transfer 1203 | . 75 24 21 12 . . 279 39 . . 27 372 285 69 Effects 1 | . . . . 1 . . . . . . . . . . Energy Bleed 1 | . . . . 1 . . . . . . . . . . Siege Activations . | . . . . . . . . . . . . . . . Robots Corrupted . | . . . . . . . . . . . . . . . Combat Hostiles . | . . . . . . . . . . . . . . . Parts Fried 4 | . . . . . . . 3 1 . . . . . . Impact Corruptions 11 | . . . . . . . 5 6 . . . . . . Robots Melted . | . . . . . . . . . . . . . . . Combat Hostiles . | . . . . . . . . . . . . . . . Parts Melted 2 | . . . 1 . . . . 1 . . . . . . Heat Transferred 3189 | . 518 . 948 385 15 . 657 222 . 37 222 185 . . Parts Sabotaged . | . . . . . . . . . . . . . . . Parts Stolen . | . . . . . . . . . . . . . . . Parts Stripped . | . . . . . . . . . . . . . . . Power Chain Reactions . | . . . . . . . . . . . . . . . Missiles Intercepted . | . . . . . . . . . . . . . . . Alert | -11 -10 -10 -9 -9 -9 -8 -8 -7 -6 -5 -5 -5 -5 -4 ------- Run | Yrd Mat Min Mat Min Exi Min Mat Fac Fac Fac Upp Upp War Pro Peak Influence 375 | . 271 185 375 329 . . 193 289 81 44 . . . . Initial 145 | . . 105 72 145 . . . 2 49 34 . . . . Average 130 | . 116 183 243 159 . . 60 134 63 39 . . . . Maximum Alert Level 1 | . 1 . 1 1 . . . 1 . . . . . . Low Security (%) 83 | . 83 100 29 88 . 100 100 83 100 100 . . . . Level 1 16 | . 16 . 70 11 . . . 16 . . . . . . Level 2 . | . . . . . . . . . . . . . . . Level 3 . | . . . . . . . . . . . . . . . Level 4 . | . . . . . . . . . . . . . . . Level 5 . | . . . . . . . . . . . . . . . High Security . | . . . . . . . . . . . . . . . Max Security . | . . . . . . . . . . . . . . . Squads Dispatched 6 | . . . . . . . 1 3 . 2 . . . . Investigation 1 | . . . . . . . . . . 1 . . . . Extermination 2 | . . . . . . . . 1 . 1 . . . . Reinforcement 2 | . . . . . . . 1 1 . . . . . . Assault 1 | . . . . . . . . 1 . . . . . . Garrison . | . . . . . . . . . . . . . . . Intercept . | . . . . . . . . . . . . . . . Searches Triggered . | . . . . . . . . . . . . . . . Construction Impeded . | . . . . . . . . . . . . . . . Haulers Reinforced 1 | . . . . . . . . 1 . . . . . . Active Scanning Responses . | . . . . . . . . . . . . . . . Cargo Convoy Interrupts . | . . . . . . . . . . . . . . . Stealth | -11 -10 -10 -9 -9 -9 -8 -8 -7 -6 -5 -5 -5 -5 -4 --------- Run | Yrd Mat Min Mat Min Exi Min Mat Fac Fac Fac Upp Upp War Pro Distress Signals 2 | . . . . . . . 1 1 . . . . . . Communications Jammed . | . . . . . . . . . . . . . . . Distress Signals . | . . . . . . . . . . . . . . . Times Spotted 109 | . 11 2 9 6 . . 13 10 . . 3 15 34 6 Peak Tracking Total 14 | . 3 2 6 3 . . 8 3 . 1 2 6 14 4 Tactical Retreats 4 | . . . . . . . . . . . . 4 . . Traps | -11 -10 -10 -9 -9 -9 -8 -8 -7 -6 -5 -5 -5 -5 -4 ------- Run | Yrd Mat Min Mat Min Exi Min Mat Fac Fac Fac Upp Upp War Pro Traps Triggered 3 | . . . 1 . . . 1 . 1 . . . . . Indirectly . | . . . . . . . . . . . . . . . Trap Hack Attempts . | . . . . . . . . . . . . . . . Triggered . | . . . . . . . . . . . . . . . Disarmed . | . . . . . . . . . . . . . . . Reprogrammed . | . . . . . . . . . . . . . . . Reused . | . . . . . . . . . . . . . . . Traps Extracted . | . . . . . . . . . . . . . . . Installed . | . . . . . . . . . . . . . . . Triggered 30 | . . . . . . . . . . . . 4 26 . Machines | -11 -10 -10 -9 -9 -9 -8 -8 -7 -6 -5 -5 -5 -5 -4 ---------- Run | Yrd Mat Min Mat Min Exi Min Mat Fac Fac Fac Upp Upp War Pro Machines Disabled 11 | . 1 . . 8 . . . 1 1 . . . . . Max in Single Turn 1 | . . . . . . . . 1 1 . . . . . Garrison Access 1 | . . . . . . . . 1 . . . . . . Machines Repaired . | . . . . . . . . . . . . . . . Machines Dismantled . | . . . . . . . . . . . . . . . Machines Sabotaged . | . . . . . . . . . . . . . . . Overloaded Fab Kills . | . . . . . . . . . . . . . . . Hacking | -11 -10 -10 -9 -9 -9 -8 -8 -7 -6 -5 -5 -5 -5 -4 --------- Run | Yrd Mat Min Mat Min Exi Min Mat Fac Fac Fac Upp Upp War Pro Machines Accessed 20 | . 2 . 2 . 4 . 4 2 2 1 2 . 1 . Terminals 11 | . 2 . 2 . . . 3 2 1 1 . . . . Fabricators . | . . . . . . . . . . . . . . . Repair Stations . | . . . . . . . . . . . . . . . Recycling Units . | . . . . . . . . . . . . . . . Scanalyzers 2 | . . . . . . . 1 . 1 . . . . . Garrison Access . | . . . . . . . . . . . . . . . Total Hacks 75 | . 5 . 8 . 4 . 19 8 18 6 6 . 1 . Successful 56 | . 3 . 6 . 4 . 14 4 14 4 6 . 1 . Failed 19 | . 2 . 2 . . . 5 4 4 2 . . . . Catastrophic 2 | . . . . . . . 1 . . 1 . . . . Database Lockouts . | . . . . . . . . . . . . . . . Manual 16 | . 1 . 3 . . . 7 3 2 . . . . . Terminals 47 | . 5 . 8 . . . 13 8 7 6 . . . . Fabricators . | . . . . . . . . . . . . . . . Repair Stations . | . . . . . . . . . . . . . . . Recycling Units . | . . . . . . . . . . . . . . . Scanalyzers 17 | . . . . . . . 6 . 11 . . . . . Garrison Access . | . . . . . . . . . . . . . . . Terminal Hacks 38 | . 3 . 6 . 4 . 7 4 3 4 6 . 1 . Record 9 | . . . . . 4 . . . . . 5 . . . Prototype ID Bank 5 | . 1 . . . . . 1 . 2 1 . . . . Open Door 2 | . . . . . . . . . . . 1 . 1 . Level Access Points 1 | . . . 1 . . . . . . . . . . . Branch Access Points 3 | . . . 1 . . . . . 1 1 . . . . Emergency Access Points 1 | . . . 1 . . . . . . . . . . . Recycling Unit Index 1 | . . . 1 . . . . . . . . . . . Alert Level 3 | . . . . . . . 1 1 . 1 . . . . Locate Traps 1 | . . . . . . . 1 . . . . . . . Dispatch Records 2 | . . . . . . . 1 . . 1 . . . . Maintenance Status 1 | . . . 1 . . . . . . . . . . . Patrol Status 1 | . . . . . . . 1 . . . . . . . Transport Status 1 | . . . . . . . 1 . . . . . . . Investigation Status 1 | . . . . . . . . 1 . . . . . . Hauler Manifests 1 | . 1 . . . . . . . . . . . . . Registered Components 1 | . . . . . . . . 1 . . . . . . Zone Layout 4 | . 1 . 1 . . . 1 1 . . . . . . Fabricator Hacks . | . . . . . . . . . . . . . . . Repair Station Hacks . | . . . . . . . . . . . . . . . Recycling Unit Hacks . | . . . . . . . . . . . . . . . Scanalyzer 16 | . . . . . . . 6 . 10 . . . . . Insert Component 8 | . . . . . . . 3 . 5 . . . . . Analyze 8 | . . . . . . . 3 . 5 . . . . . Garrison Access Hacks . | . . . . . . . . . . . . . . . Unauthorized Hacks 2 | . . . . . . . 1 . 1 . . . . . Terminals 2 | . . . . . . . 1 . 1 . . . . . Botnet 2 | . . . . . . . 1 . 1 . . . . . Fabricators . | . . . . . . . . . . . . . . . Repair Stations . | . . . . . . . . . . . . . . . Recycling Units . | . . . . . . . . . . . . . . . Scanalyzers . | . . . . . . . . . . . . . . . Garrison Access . | . . . . . . . . . . . . . . . Data Cores Recovered 1 | . 1 . . . . . . . . . . . . . Used . | . . . . . . . . . . . . . . . Hacking Detections 13 | . 2 . 2 . . . 4 2 2 1 . . . . Full Trace Events 1 | . . . . . . . . . . 1 . . . . Feedback Events . | . . . . . . . . . . . . . . . Feedback Blocked . | . . . . . . . . . . . . . . . Robot Schematics Acquired . | . . . . . . . . . . . . . . . Robots Built . | . . . . . . . . . . . . . . . Authchips . | . . . . . . . . . . . . . . . Time . | . . . . . . . . . . . . . . . Total Robot Build Rating . | . . . . . . . . . . . . . . . Part Schematics Acquired 7 | . . . . . . . 3 . 4 . . . . . Parts Built . | . . . . . . . . . . . . . . . Authchips . | . . . . . . . . . . . . . . . Time . | . . . . . . . . . . . . . . . Total Part Build Rating . | . . . . . . . . . . . . . . . Parts Repaired . | . . . . . . . . . . . . . . . Time . | . . . . . . . . . . . . . . . Parts Recycled . | . . . . . . . . . . . . . . . Recycled Matter . | . . . . . . . . . . . . . . . Retrieved Matter . | . . . . . . . . . . . . . . . Retrieved Components . | . . . . . . . . . . . . . . . Parts Scanalyzed 8 | . . . . . . . 3 . 5 . . . . . Part Schematics Acquired 7 | . . . . . . . 3 . 4 . . . . . Parts Damaged . | . . . . . . . . . . . . . . . Bothacking | -11 -10 -10 -9 -9 -9 -8 -8 -7 -6 -5 -5 -5 -5 -4 ------------ Run | Yrd Mat Min Mat Min Exi Min Mat Fac Fac Fac Upp Upp War Pro Used RIF Installer . | . . . . . . . . . . . . . . . Robots Hacked . | . . . . . . . . . . . . . . . Non-combat . | . . . . . . . . . . . . . . . Combat . | . . . . . . . . . . . . . . . Robot Hacks Applied . | . . . . . . . . . . . . . . . Relay Couplers Released 2 | . . . . . . . . 2 . . . . . . Machine Destruction 2 | . . . . . . . . 2 . . . . . . Fabnet Peak Effective % . | . . . . . . . . . . . . . . . Robots Rewired 1 | . . . . . . . . . . 1 . . . . Allies Hacked . | . . . . . . . . . . . . . . . Hacks Repelled . | . . . . . . . . . . . . . . . Allies | -11 -10 -10 -9 -9 -9 -8 -8 -7 -6 -5 -5 -5 -5 -4 -------- Run | Yrd Mat Min Mat Min Exi Min Mat Fac Fac Fac Upp Upp War Pro Total Allies 5 | . 1 . . 2 . . . . . 1 . . 1 . Largest Group 3 | . 1 1 1 3 2 . . . . 1 1 . 1 . Highest-Rated Group 70 | . 30 30 30 70 41 . . . . 29 29 . 45 . Highest-Rated Ally 45 | . 30 30 30 31 31 . . . . 29 29 . 45 . Total Orders . | . . . . . . . . . . . . . . . Ally Attacks 49 | . 2 1 22 7 . . . . . . 2 . 15 . Total Damage 1184 | . 153 69 344 276 . . . . . . 37 . 305 . Kills 10 | . 3 1 4 2 . . . . . . . . . . Allies Corrupted 1 | . . . . . . . . . . . . . 1 . Allies Melted 1 | . . . . . . . . . . . . . 1 . Intel | -11 -10 -10 -9 -9 -9 -8 -8 -7 -6 -5 -5 -5 -5 -4 ------- Run | Yrd Mat Min Mat Min Exi Min Mat Fac Fac Fac Upp Upp War Pro Robot Analysis Total . | . . . . . . . . . . . . . . . Derelict Logs Recovered 3 | . . . . 1 . . . . . . 1 . . 1 Drone Launches . | . . . . . . . . . . . . . . . Drone Recoveries . | . . . . . . . . . . . . . . . Exploration | -11 -10 -10 -9 -9 -9 -8 -8 -7 -6 -5 -5 -5 -5 -4 ------------- Run | Yrd Mat Min Mat Min Exi Min Mat Fac Fac Fac Upp Upp War Pro Turns Passed 7047 | . 338 80 357 836 504 12 474 462 107 279 684 1098 1364 452 Spaces Moved 3963 | 1 206 60 188 639 421 11 273 268 77 138 471 377 580 253 Core 283 | . . . . . . . 4 . . . . 262 . 17 Treads 837 | . . . . . . . . . . . . 21 580 236 Legs 2843 | 1 206 60 188 639 421 11 269 268 77 138 471 94 . . Wheels . | . . . . . . . . . . . . . . . Hover . | . . . . . . . . . . . . . . . Flight . | . . . . . . . . . . . . . . . Fastest Speed 120 | 120 120 120 120 120 120 120 120 130 130 130 126 125 160 170 Average Speed 157 | 120 120 120 120 120 120 120 127 130 130 180 134 260 224 172 Slowest Speed 400 | 120 120 120 120 120 120 120 300 130 130 200 200 400 320 350 Overloaded Moves . | . . . . . . . . . . . . . . . Propulsion Burnouts . | . . . . . . . . . . . . . . . Robots Hopped 1 | . . . . 1 . . . . . . . . . . Cave-ins Triggered 1 | . . . 1 . . . . . . . . . . . Exploration Rate (%) 36 | 1 35 15 23 98 82 11 28 10 3 3 67 62 75 39 Regions Visited 14 Branch Regions 8 Pre-discovered Areas 1 | . . . . 1 . . . . . . . . . . Known Exits Taken 9 | . . . 1 . . 1 1 1 1 1 1 1 1 . Unknown Exits Taken 5 | 1 1 1 . 1 1 . . . . . . . . . Scrap Searched 9 | . . . . 3 . . . . . . 4 2 . . Spaces Dug 3 | . . . . . . . . 2 1 . . . . . Terrain Destroyed 353 | . . . . . . . . 4 1 . 4 6 195 143 Melee 3 | . . . . . . . . 2 1 . . . . . Projectile 13 | . . . . . . . . 2 . . 4 6 1 . AOE 337 | . . . . . . . . . . . . . 194 143 Terrain Rammed . | . . . . . . . . . . . . . . . Walls Destroyed . | . . . . . . . . . . . . . . . Machines Disabled . | . . . . . . . . . . . . . . . Actions | -11 -10 -10 -9 -9 -9 -8 -8 -7 -6 -5 -5 -5 -5 -4 --------- Run | Yrd Mat Min Mat Min Exi Min Mat Fac Fac Fac Upp Upp War Pro Total 4473 | . 265 62 264 671 420 10 346 332 80 165 502 459 629 268 Wait 104 | . 17 . 38 5 . . 8 . . . . 33 2 1 Move 3947 | . 205 59 187 636 420 10 272 267 76 137 470 376 579 253 Hop 1 | . . . . 1 . . . . . . . . . . Pick Up 39 | . 10 . 3 3 . . 4 12 . 1 3 . 3 . Fast Attach 32 | . 1 . 1 . . . 11 1 . 5 1 2 7 3 Attach 22 | . . . 2 . . . 4 3 2 . . 4 5 2 Detach 13 | . . . . . . . 2 . . 1 . 3 4 3 Swap 31 | . 3 . 3 1 . . 8 9 . 2 3 1 1 . Drop 64 | . 11 . 4 4 . . 11 12 . 3 4 . 13 2 Fire 170 | . 18 3 25 17 . . 21 16 . 1 12 40 13 4 Melee 19 | . . . . . . . 5 12 2 . . . . . Ram . | . . . . . . . . . . . . . . . Kick 9 | . . . 1 4 . . . . . . 4 . . . Crush 2 | . . . . . . . . . . . . . 2 . Escape Stasis . | . . . . . . . . . . . . . . . Rewire 20 | . . . . . . . . . . 15 5 . . . Trap . | . . . . . . . . . . . . . . . Miscellaneous . | . . . . . . . . . . . . . . . Route ------- -11/Scrapyard -10/Materials (discovered 2 exits: [*Min x2]) -10/Mines -9/Materials (discovered 4 exits: Mat x3 / *Min) -9/Mines (discovered 3 exits: *Mat x2 / *Exi) -9/Exiles -8/Mines -8/Materials -7/Factory -6/Factory (discovered 3 exits: *Fac / Low x2) -5/Factory (discovered 4 exits: *Upp x2 / Ext x2) -5/Upper Caves -5/Upper Caves (discovered 2 exits: *Fac / *War) -5/Warlord -4/Proximity Caves History --------- Turn | Location | Event 1 | -11/Scrapyard | Discovered new exit (range 0) 1 | -11/Scrapyard | Entered Materials 23 | -10/Materials | Discovered new exit (range 19) 127 | -10/Materials | Botcube activated 139 | -10/Materials | Botcube completed mutation into hovering form, armed with 1 gun, 1 launcher. 278 | -10/Materials | Discovered new exit (range 12) 311 | -10/Materials | Build established: Mutant 339 | -10/Materials | Entered Mines 339 | -10/Mines | Accompanied by 1 ally 407 | -10/Mines | Discovered new exit (range 10) 419 | -10/Mines | Entered Materials 419 | -9/Materials | Accompanied by 1 ally 419 | -9/Materials | Evolved 2 slots: Utility x1, Weapon x1 571 | -9/Materials | Crushed by falling debris 706 | -9/Materials | Build established: Scavenger-Gunner 716 | -9/Materials | Identified exit to Materials 716 | -9/Materials | Identified exit to Mines 776 | -9/Materials | Entered Mines 776 | -9/Mines | Accompanied by 1 ally 1151 | -9/Mines | Discovered exit to Materials (range 10) 1450 | -9/Mines | Discovered exit to Materials (range 8) 1502 | -9/Mines | Murdered Mutated Botcube 1506 | -9/Mines | Found Botcube 1602 | -9/Mines | Deemed a non-threat by the Exiles lab entrance 1602 | -9/Mines | Discovered new exit (range 5) 1612 | -9/Mines | Entered Exiles 1612 | -9/Exiles | Found Exiles lab abandoned 1612 | -9/Exiles | Accompanied by 2 allies 1642 | -9/Exiles | Led the pair of lost Derelicts to a safe place 2106 | -9/Exiles | Discovered new exit (range 10) 2116 | -9/Exiles | Entered Mines 2122 | -8/Mines | Discovered exit to Materials (range 6) 2128 | -8/Mines | Entered Materials 2128 | -8/Materials | Evolved 2 slots: Utility x2 2443 | -8/Materials | Lost 4 parts (2n1u1w) 2540 | -8/Materials | Discovered new exit (range 16) 2578 | -8/Materials | Identified exit to Factory 2602 | -8/Materials | Entered Factory 2602 | -7/Factory | Evolved 2 slots: Utility x2 2987 | -7/Factory | Build established: Assassin 3006 | -7/Factory | Discovered new exit (range 14) 3047 | -7/Factory | Identified exit to Factory 3064 | -7/Factory | Entered another Factory area 3064 | -6/Factory | Evolved 2 slots: Utility x1, Weapon x1 3103 | -6/Factory | Identified exit to Lower Caves 3136 | -6/Factory | Discovered new exit (range 10) 3149 | -6/Factory | Identified exit to Factory 3171 | -6/Factory | Entered another Factory area 3171 | -5/Factory | Evolved 2 slots: Propulsion x1, Utility x1 3355 | -5/Factory | Discovered new exit (range 13) 3358 | -5/Factory | Build established: Skirmisher 3412 | -5/Factory | Identified exit to Upper Caves 3412 | -5/Factory | Identified exit to Extension 3450 | -5/Factory | Entered Upper Caves 3450 | -5/Upper Caves | Accompanied by 1 ally 3466 | -5/Upper Caves | Learned 8 Factory zone layouts 3729 | -5/Upper Caves | Encountered a Warlord checkpoint 3922 | -5/Upper Caves | Attracted the attention of an 0b10 checkpoint 4034 | -5/Upper Caves | Learned location of 1 exit from Research 4034 | -5/Upper Caves | Learned Extension emergency access door positions 4034 | -5/Upper Caves | Learned Armory stockpile data 4034 | -5/Upper Caves | Learned Armory garrison access intel 4106 | -5/Upper Caves | Discovered new exit (range 3) 4109 | -5/Upper Caves | Identified exit to Upper Caves 4134 | -5/Upper Caves | Entered another Upper Caves area 4144 | -5/Upper Caves | Discovered new exit (range 15) 4163 | -5/Upper Caves | Identified exit to Factory 4276 | -5/Upper Caves | Lost 3 parts (1n2w) 4335 | -5/Upper Caves | Lost 5 parts (2n2u1w) 4513 | -5/Upper Caves | Build established: Mutant 5118 | -5/Upper Caves | Discovered new exit (range 10) 5138 | -5/Upper Caves | Identified exit to Warlord 5232 | -5/Upper Caves | Entered Warlord 5455 | -5/Warlord | Visited the Vortex Lab 5468 | -5/Warlord | Warlord's base attacked by MAIN.C 5477 | -5/Warlord | Met EX-DEC 5478 | -5/Warlord | Found Meganuke 5484 | -5/Warlord | Found Prototype Energy Cannon 5490 | -5/Warlord | Found Prototype Launcher 5490 | -5/Warlord | Identified Vortex Catalyst Activator 5681 | -5/Warlord | Met Warlord 5753 | -5/Warlord | Found Prototype Special Weapon 5753 | -5/Warlord | Identified RU-N14's Throwing Claymores v3 5776 | -5/Warlord | Build established: Gunner 5818 | -5/Warlord | Warlord forces counterattacked 5911 | -5/Warlord | Found RU-N14's Throwing Claymores v3 6113 | -5/Warlord | Botcube activated 6123 | -5/Warlord | Botcube completed mutation into hovering form, armed with 1 cannon, 1 launcher. 6143 | -5/Warlord | Warlord base infiltrated, sounded retreat 6393 | -5/Warlord | Spotted Executioner 6396 | -5/Warlord | Destroyed Striker 6403 | -5/Warlord | Destroyed Executioner 6405 | -5/Warlord | Destroyed Executioner 6426 | -5/Warlord | Destroyed 18 combat bots 6455 | -5/Warlord | Discovered new exit (range 14) 6494 | -5/Warlord | Destroyed 16 combat bots 6495 | -5/Warlord | Identified exit to Proximity Caves 6544 | -5/Warlord | Spotted Striker 6549 | -5/Warlord | Core integrity fell below 50% 6549 | -5/Warlord | Destroyed Striker 6568 | -5/Warlord | Spotted B-86 Titan 6568 | -5/Warlord | Spotted B-75 Beast 6568 | -5/Warlord | Spotted B-86 Titan 6568 | -5/Warlord | Spotted Striker 6570 | -5/Warlord | Destroyed Executioner 6570 | -5/Warlord | Destroyed Striker 6573 | -5/Warlord | Destroyed B-86 Titan 6595 | -5/Warlord | Core integrity fell below 20% 6596 | -5/Warlord | Entered Proximity Caves 6617 | -4/Proximity Caves | Lost 5 parts (1p2n2u) 6653 | -4/Proximity Caves | Build established: Mutant 6998 | -4/Proximity Caves | Learned Research emergency access door positions 7048 | -4/Proximity Caves | Destroyed by G-73 Enforcer with Heavy Laser Last Messages --------------- 06716_ Identified Prc. Matter Filter. 06717_ Acquired 10 matter. 06719_ Dropped Prc. Matter Filter. 06725_ Acquired Imp. Utility Shielding. 06728_ Acquired Med. Insulated Plating. 06746_ The unstable cave ceiling collapses. 06998_ Acquired derelict log, extracted data. Data stored: Research emergency access points. 07009_ C-30 ARC bursts open, deploying its payload. 07009_ G-73 Enforcer unfolds itself. 07009_ G-67 Veteran unfolds itself. 07009_ Arm. Medium Treads destroyed. 07011_ Vortex Catalyst Activator implodes. 07011_ Destroyed Lgt. Quantum Reactor. 07011_ Destroyed Lgt. Antimatter Reactor. 07011_ G-67 Veteran destroyed. 07011_ Destroyed Adv. Heat Sink. 07011_ G-67 Veteran destroyed. 07018_ Dropped Imp. Utility Shielding. 07039_ System Shield destroyed. Map ----- +----------------------------------------------------+ | ?????????????????????????????????????????????????? | | ?????????????????????????????????????????????????? | | ?????????????????????????????????????????????????? | | ?????????????????????????????????????????????????? | | ?????????????????????????????????????????????????? | | ?????????????????????????????????????????????????? | | ?????????????????????????????????????????????????? | | ?????????????????????????????????????????????????? | | ?????????????????????????????????????????????????? | | ?????????????????????????????????????????????????? | | ?????????????????????????????????????????????????? | | ?????????????????????????????????????????????????? | | ?????????????????? ?????????????????????????????? | | ???????????????? ????????????????????????????? | | ?????????????? #??????????????##???????????? | | ?????????????? #????????????? ##??????????? | | ????????????? ???????????? #??????????? | | ?????????????? ####???????# ##?????????? | | ??????????????? ##?????# #?????????? | | ???????????????? ?????? ??????????? | | ????????????????? ?????? ???????????? | | ??????????????????? ?????# ##????????? ? | | ????????????????????# ??###"""""###??????# ? | | ?????????????????????# #??# #?????? # | | ?????????????????????# #### ##????? | | ??????????????????##??# @ ##"""""""""""### ? | | ??????????????#### #??## % | | ?????????????## #???## gg % | | ????????????## #????# !##;;;;;;;;;;"##???? | | ????????????# #????## ## #????? | | ???????????## #??????# ### ##????? | | ???????????# #??????# ###"";;;; #?????? | | ???????????# ##??????# ;#####?????# | | ???????????# #???????# ## ####??# | | ???????????# ##??????###### #### | | ???????????# ##??????????## ## | | ???????????## #??????###### #? | | ????????????# ##?????## ### ##? | | ????????????# ###?####?# ## #####?? | | ????????????# #??## ##?# ## ##?????? | | #???????????# #### ##?# #??????? | | #???????????# ### # ##??????? | | #???????????# # ###???????? | | #???????????## ##### # #?????????? | | #????????????## ##???# # #?????????? | | #?????????????# ##???# ## #?????????? | | #?????????????# #????# ##### #?????????? | | ##????????????# #????## #???# #?????????? | | #??????####### #?????# #######??? ?????????? | | "#?????## #?????# #????????? ?????????? | +----------------------------------------------------+ Best States ------------- Heat Dissipation 66 Energy Generation 15 Energy Capacity 160 Matter Stores 300 Matter Capacity 300 Sight Range 16 Robot Scan Range 15 Terrain Scan Range 16 Terrain Scan Density 210 Cloak Strength 3 Armor Coverage 375 Resistance: EM 20 Utility Shielding 66 Weapon Cycling 20 Evasion (%) 55 Core Analysis 6 Recoil Reduction 3 Offensive Hacking 10 Defensive Hacking 10 Item Schematics ----------------- Adv. Beam Rifle | -8/Materials | Scanalyzed Imp. Terrain Scanner | -8/Materials | Scanalyzed System Restoration Module | -8/Materials | Scanalyzed Hvy. EM Shotgun | -6/Factory | Scanalyzed Shock Rifle | -6/Factory | Scanalyzed Mic. Nuclear Core | -6/Factory | Scanalyzed Shotgun | -6/Factory | Scanalyzed Robot Schematics ------------------ None Fabricated ------------ Nothing Alien Tech Used ----------------- None Achievements -------------- None Challenges ------------ None Game ------ Seed GammaLobotomyShearcannon Manual? 0 Play Time 00:34:52 Cumulative 580.5 hours Start 2024.01.07 @ 22:20:49 End 2024.01.07 @ 22:53:41 Sessions 1 Manual Loads 0 Difficulty Rogue Special Mode None Game No. 486 Rogue 213 Adventurer 123 Explorer 150 Win Type - Total 25 Types 19/0/4/1/0/0/0/1/0 Lore% 78 Gallery% 90 Achievement% 75 Wizard Run 0 Options --------- ASCII 0 Keyboard 1 Movement Numpad Keybinds 0 Fullscreen 2 Font 18/X11Bold Map View 76x50 Zoom Use 1% Tactical HUD 1 Map Filters NONE Filters NONE Steam 1 RUN: 3551dc53-b5be-4509-9cc6-819440e9880d